Cogmind - Beta 11.1 @@@ ROGUE MODE // 2022.06.23 @ 00:30:58 Player: Jezoensis Result: Self-destructed Performance ------------- Evolutions (4) 2000 Regions Visited (11) 2200 Robots Destroyed (60) 300 Value Destroyed (1689) 1689 Prototype IDs (32) 640 Alien Tech Used (0) 0 Bonus (911) 911 TOTAL SCORE: 7740 Bonus ------- Follower Combat Kills 111 Entered DSFs 500 Aligned with FarCom 300 Cogmind --------- Core Integrity 739/850 Matter 256/300 Energy 300/300 System Corruption 4% Temperature Cool (0) Movement Treading (162) Location -6/Extension Parts ------- > --- POWER (1) -------- Enhanced Nuclear Core > --- PROPULSION (4) --- Light Treads Light Treads Light Treads Armored Treads > --- UTILITY (7) ------ High-capacity Storage Unit Terrain Scan Processor Advanced Targeting Computer Armor Integrity Analyzer Kinecellerator Weapon Cycler Improved Light Armor Plating > --- WEAPON (3) ------- Heavy Assault Rifle Heavy Assault Rifle Heavy Assault Rifle > --- INVENTORY (20) --- Cold Fusion Reactor Light Treads Improved Medium Treads Improved Medium Treads Improved Medium Treads Advanced Heat Sink Improved Matter Compressor (300) Improved Matter Compressor (300) Improved Signal Interpreter Advanced Terrain Scanner 0b10 Alert Chip Transmission Jammer Transmission Jammer Heavy Plasma Cannon Heavy Assault Rifle Heavy Assault Rifle Flak Gun Flak Gun Powered Hammer Peak State ------------ > --- POWER ------------ Enhanced Nuclear Core > --- PROPULSION ------- Light Treads Light Treads Light Treads Armored Treads > --- UTILITY ---------- High-capacity Storage Unit Improved Matter Compressor Advanced Terrain Scanner Terrain Scan Processor Advanced Targeting Computer Transmission Jammer Improved Hacking Suite > --- WEAPON ----------- Heavy Assault Rifle Heavy Assault Rifle Powered Hammer > --- INVENTORY -------- Cold Fusion Reactor Light Treads Improved Medium Treads Improved Medium Treads Improved Medium Treads Advanced Heat Sink High-capacity Matter Pod High-capacity Matter Pod Improved Signal Interpreter 0b10 Alert Chip Armor Integrity Analyzer Kinecellerator Weapon Cycler Transmission Jammer Heavy Plasma Cannon Heavy Assault Rifle Heavy Assault Rifle Heavy Assault Rifle Flak Gun Flak Gun [Rating: 53] Favorites ----------- Power Light Ion Engine Engine Light Ion Engine Power Core Enhanced Nuclear Core Reactor Cold Fusion Reactor Propulsion Light Treads Treads Light Treads Wheel Compact Wheel Utility High-capacity Storage Unit Device Improved Terrain Scanner Storage High-capacity Storage Unit Processor Terrain Scan Processor Hackware System Shield Protection Improved Light Armor Plating Weapon Heavy Assault Rifle Energy Gun Medium Laser Energy Cannon Heavy Plasma Cannon Ballistic Gun Heavy Assault Rifle Ballistic Cannon Antimatter Cannon Launcher Grenade Launcher Special Weapon Mining Laser Impact Weapon Powered Hammer Build | -11 -10 -10 -9 -9 -9 -8 -8 -7 -7 -6 -6 ------- Run | Scr Mat Min Mat Min Exi Min Mat Fac DSF Fac Ext Slots Evolved 8 | . . . 2 . . . 2 2 . 2 . Power . | . . . . . . . . . . . . Propulsion 2 | . . . 1 . . . . 1 . . . Utility 5 | . . . 1 . . . 1 1 . 2 . Weapon 1 | . . . . . . . 1 . . . . Parts Attached 143 | 9 7 3 15 4 1 . 51 2 7 24 20 Power 9 | 1 . . 1 1 . . 2 . 1 3 . Engine 7 | 1 . . 1 1 . . 2 . 1 1 . Core 1 | . . . . . . . . . . 1 . Reactor 1 | . . . . . . . . . . 1 . Propulsion 22 | 4 2 1 3 . . . 3 1 1 2 5 Treads 14 | . 1 1 1 . . . 2 1 1 2 5 Leg . | . . . . . . . . . . . . Wheel 8 | 4 1 . 2 . . . 1 . . . . Hover . | . . . . . . . . . . . . Flight . | . . . . . . . . . . . . Utility 70 | 2 1 1 7 1 1 . 30 1 3 12 11 Device 46 | 1 . 1 5 1 . . 20 . 2 10 6 Storage 5 | 1 1 . 1 . 1 . . . . . 1 Processor 4 | . . . 1 . . . 2 . . . 1 Hackware 3 | . . . . . . . 1 . . 1 1 Protection 12 | . . . . . . . 7 1 1 1 2 Artifact . | . . . . . . . . . . . . Weapon 42 | 2 4 1 4 2 . . 16 . 2 7 4 Energy Gun 3 | . 2 . 1 . . . . . . . . Energy Cannon 1 | . . . . . . . . . . 1 . Ballistic Gun 24 | 2 . . 2 1 . . 10 . 2 4 3 Ballistic Cannon 1 | . . . . . . . . . . 1 . Launcher 4 | . 1 1 . 1 . . 1 . . . . Special Weapon 7 | . 1 . 1 . . . 5 . . . . Impact Weapon 2 | . . . . . . . . . . 1 1 Slashing Weapon . | . . . . . . . . . . . . Piercing Weapon . | . . . . . . . . . . . . Special Melee Weapon . | . . . . . . . . . . . . Unidentified Prototypes 4 | . . . . . . . . . . 3 1 Parts Lost 13 | . 1 1 3 . . . 3 . 1 . 4 Power 2 | . . . 1 . . . 1 . . . . Propulsion 5 | . 1 1 1 . . . 1 . . . 1 Utility 2 | . . . 1 . . . . . . . 1 Weapon 4 | . . . . . . . 1 . 1 . 2 Highest Loss Streak 2 | . 1 1 2 . . . 1 . 1 . 2 To Critical Strikes 1 | . . . . . . . . . 1 . . Average Slot Usage (%) 99 | . 100 94 98 100 100 100 99 100 100 100 99 Engine 6 | . 14 14 10 11 11 11 9 7 7 2 . Core 1 | . . . . . . . . . . 3 6 Treads 16 | . . 8 19 11 11 11 7 23 28 26 25 Wheel 11 | . 27 14 13 22 22 22 19 7 1 . . Device 12 | . 14 14 12 11 11 11 12 7 5 14 13 Storage 8 | . 14 14 11 11 11 11 9 7 7 6 6 Processor 11 | . . . 9 11 11 11 10 15 15 13 13 Hackware 2 | . . . . . . . . . . 4 7 Protection 3 | . . . . . . . 4 7 9 6 4 Ballistic Gun 20 | . 16 14 14 22 22 22 25 23 23 16 19 Naked Turns . | . . . . . . . . . . . . Heaviest Build 72 | 15 20 21 30 30 50 50 66 62 69 72 65 Greatest Support 80 | 26 26 16 32 32 32 32 42 16 80 80 80 Greatest Overweight (x) 4 | . . 1 1 . 1 1 3 3 4 . . Average Overweight (x) . | . . 1 . . . 1 1 3 . . . Largest Inventory Capacity 20 | 8 10 10 15 15 20 20 20 20 20 20 20 Average Capacity 17 | 7 8 10 11 15 15 20 20 20 20 20 20 Most Carried 20 | 8 10 10 11 14 16 18 20 19 20 20 20 Average Carried 16 | 3 8 9 8 12 14 16 18 18 18 19 19 Final Capacity 20 | 8 10 10 15 15 20 20 20 20 20 20 20 Final Carried 20 | 8 10 9 10 13 16 18 20 19 20 20 19 Class Distribution -------------------- 36% | Mutant 24% | Scavenger-Skirmisher 9% | Scavenger-Gunner 8% | Skirmisher 7% | Scavenger-Mutant 6% | Hacker-Skirmisher 5% | Scavenger-Assassin Dominant Class ---------------- Mutant | -10/Materials Mutant | -10/Mines Mutant | -9/Materials Mutant | -9/Mines Mutant | -9/Exiles Mutant | -8/Mines Scavenger-Skirmisher | -8/Materials Scavenger-Skirmisher | -7/Factory Scavenger-Gunner | -7/DSF Scavenger-Skirmisher | -6/Factory Skirmisher | -6/Extension Resources | -11 -10 -10 -9 -9 -9 -8 -8 -7 -7 -6 -6 ----------- Run | Scr Mat Min Mat Min Exi Min Mat Fac DSF Fac Ext Matter Collected 3222 | 350 100 . 188 53 376 24 584 200 262 121 964 Remotely . | . . . . . . . . . . . . Salvage Created 2319 | 115 148 42 216 71 . 12 786 . 262 121 546 Parts 174 | 11 10 6 12 14 . 2 62 . 17 13 27 Haulers Intercepted . | . . . . . . . . . . . . Recyclers Shooed 5 | 1 . . . 1 . . 2 . . . 1 Parts Field Recycled . | . . . . . . . . . . . . Retrieved Matter . | . . . . . . . . . . . . Parts Self-Destructed . | . . . . . . . . . . . . Prevented . | . . . . . . . . . . . . Kills | -11 -10 -10 -9 -9 -9 -8 -8 -7 -7 -6 -6 ------- Run | Scr Mat Min Mat Min Exi Min Mat Fac DSF Fac Ext Combat Hostiles Destroyed 41 | . 4 3 4 3 . . 13 . 4 4 6 Guns 35 | . . 3 4 1 . . 13 . 4 4 6 AOE 6 | . 4 . . 2 . . . . . . . Classes Destroyed 12 | 2 1 1 2 2 . . 2 . 1 1 . Worker 2 | . . . . 1 . 1 . . . . . Builder 3 | . . . . 1 . . 2 . . . . Tunneler 2 | 2 . . . . . . . . . . . Recycler 5 | 1 1 . 1 . . . 1 . . . 1 Mechanic 2 | . . . . . . . 2 . . . . Operator 1 | . . . . . . . 1 . . . . Watcher 4 | . . . 2 . . . 1 . . 1 . Swarmer 16 | . . 3 3 3 . . 4 . . 3 . Grunt 10 | . 4 . . . . . 4 . . . 2 Sentry 10 | . . . 1 . . . 5 . . . 4 Specialist 4 | . . . . . . . . . 4 . . Programmer 1 | . . . . . . . . . . 1 . Best Kill Streak 5 | 3 5 3 4 3 . 1 4 . 3 3 2 Combat Bots Only 4 | . 4 3 3 3 . . 4 . 3 3 2 Max Kills in Single Turn 2 | 1 1 1 1 2 . 1 2 . 1 1 1 Gunslinging 1 | . . . . . . . 1 . . . . Exploded 2 | . 1 . . 2 . . . . . . . Melee . | . . . . . . . . . . . . Uniques/NPCs Destroyed . | . . . . . . . . . . . . Combat | -11 -10 -10 -9 -9 -9 -8 -8 -7 -7 -6 -6 -------- Run | Scr Mat Min Mat Min Exi Min Mat Fac DSF Fac Ext Damage Taken 3081 | . 117 203 343 46 . 32 564 . 475 284 1017 Core 367 | . 10 22 54 8 . . 78 . 84 . 111 Absorbed by Shields 149 | . . . . . . . 80 . 20 . 49 Core Remaining (%) 88 | 100 . 87 . . . 84 85 . 88 . . Volleys Fired 158 | 10 11 10 17 7 . 4 40 . 15 12 32 Largest 3 | 2 2 2 2 2 . 2 3 . 3 3 3 Hottest 100 | 40 100 70 100 46 . 46 100 . 75 90 71 Shots Fired 385 | 20 19 16 33 13 . 8 107 . 45 29 95 Gun 357 | 20 8 12 32 12 . 8 100 . 45 25 95 Cannon 4 | . . . . . . . . . . 4 . Launcher 14 | . 8 4 . 1 . . 1 . . . . Special 10 | . 3 . 1 . . . 6 . . . . Kinetic 336 | 20 8 6 17 12 . 8 100 . 45 25 95 Thermal 35 | . 3 6 16 . . . 6 . . 4 . Explosive 14 | . 8 4 . 1 . . 1 . . . . Electromagnetic . | . . . . . . . . . . . . Robot Hit Streak 26 | 4 8 3 23 26 . 4 9 . 8 3 22 Robot Miss Streak 4 | 4 1 3 2 1 . 2 2 . 3 4 4 Penetration Max . | . . . . . . . . . . . . Secondary Targets 3 | . . 1 1 . . . 1 . . . . Max Gunslinging Chain 1 | . . 1 1 . . . 1 . . . . Shots Hit Robots 237 | 9 10 7 26 10 . 5 57 . 31 8 74 Core Hits 99 | 4 9 3 8 5 . 1 28 . 8 8 25 Critical Kills 1 | . . . . . . . 1 . . . . Critical Parts Destroyed . | . . . . . . . . . . . . Critical Strikes 4 | . . . 3 . . . 1 . . . . Burn 3 | . . . 3 . . . . . . . . Destroy 1 | . . . . . . . 1 . . . . Melee Attacks 5 | . . . . . . . . . . 4 1 Impact 5 | . . . . . . . . . . 4 1 Slashing . | . . . . . . . . . . . . Piercing . | . . . . . . . . . . . . Sneak Attacks . | . . . . . . . . . . . . Combat Hostiles . | . . . . . . . . . . . . Follow-up Attacks . | . . . . . . . . . . . . Damage Inflicted 4437 | 144 349 93 332 251 . 72 1146 . 627 150 1273 Guns 3869 | 144 33 93 332 127 . 72 1020 . 627 148 1273 Cannons . | . . . . . . . . . . . . Explosions 566 | . 316 . . 124 . . 126 . . . . Melee . | . . . . . . . . . . . . Ramming 2 | . . . . . . . . . . 2 . Kinetic 3638 | 144 33 52 142 127 . 72 1020 . 627 148 1273 Thermal 297 | . . 41 190 . . . 66 . . . . Explosive 500 | . 316 . . 124 . . 60 . . . . Electromagnetic . | . . . . . . . . . . . . Impact . | . . . . . . . . . . . . Slashing . | . . . . . . . . . . . . Piercing . | . . . . . . . . . . . . Highest Corruption 4 | . 1 1 . . . . . . . 4 4 Average Corruption 3 | . 1 1 . . . . . . . 4 4 Corruption Purged . | . . . . . . . . . . . . Corruption Blocked . | . . . . . . . . . . . . Effects 23 | . . . . . . . . . . 4 19 Message Errors 3 | . . . . . . . . . . . 3 Matter Fused 5 | . . . . . . . . . . . 5 Heat Flow Errors 3 | . . . . . . . . . . . 3 Energy Discharges 5 | . . . . . . . . . . 1 4 Parts Rejected 1 | . . . . . . . . . . . 1 Data Loss (minor) 2 | . . . . . . . . . . 1 1 Data Loss (major) 1 | . . . . . . . . . . . 1 Misfires 1 | . . . . . . . . . . 1 . Alerts 2 | . . . . . . . . . . 1 1 Overload Shots . | . . . . . . . . . . . . Overflow Damage 29 | . . . . . . . 29 . . . . Projectiles . | . . . . . . . . . . . . Explosions 29 | . . . . . . . 29 . . . . Melee . | . . . . . . . . . . . . Knockbacks . | . . . . . . . . . . . . Impact . | . . . . . . . . . . . . Kinetic . | . . . . . . . . . . . . Secondary . | . . . . . . . . . . . . Self-Inflicted Damage 195 | . 17 65 . 13 . . 100 . . . . Shots 7 | . 1 3 . 1 . . 2 . . . . Rammed 1 | . . . . . . . . . . 1 . Targets Rammed 2 | . . . . . . . . . . 2 . Kicked . | . . . . . . . . . . . . Crushed 1 | . . . . . . . . . . 1 . Highest Temperature 281 | . 60 . 18 . . 4 40 . . 144 281 Average Temperature 37 | . 21 . 11 . . 4 9 . . 41 67 Received Heat Transfer 789 | . 57 . 114 . . 36 246 . . . 336 Effects 1 | . . . . . . . . . . . 1 Energy Bleed 1 | . . . . . . . . . . . 1 Siege Activations . | . . . . . . . . . . . . Robots Corrupted . | . . . . . . . . . . . . Combat Hostiles . | . . . . . . . . . . . . Parts Fried . | . . . . . . . . . . . . Impact Corruptions . | . . . . . . . . . . . . Robots Melted . | . . . . . . . . . . . . Combat Hostiles . | . . . . . . . . . . . . Parts Melted 4 | . . . 4 . . . . . . . . Heat Transferred 938 | . . 111 777 . . . 50 . . . . Parts Sabotaged . | . . . . . . . . . . . . Parts Stolen . | . . . . . . . . . . . . Parts Stripped . | . . . . . . . . . . . . Power Chain Reactions . | . . . . . . . . . . . . Missiles Intercepted . | . . . . . . . . . . . . Alert | -11 -10 -10 -9 -9 -9 -8 -8 -7 -7 -6 -6 ------- Run | Scr Mat Min Mat Min Exi Min Mat Fac DSF Fac Ext Peak Influence 312 | 15 312 229 255 218 . 65 216 79 150 239 194 Initial 121 | . 9 121 89 99 . . 25 74 55 78 29 Average 106 | 4 125 189 173 214 . 47 108 76 101 116 86 Maximum Alert Level 1 | . 1 1 1 1 . . 1 . . 1 . Low Security (%) 84 | 100 68 54 54 4 . 100 93 100 100 74 100 Level 1 15 | . 31 45 45 95 . . 6 . . 25 . Level 2 . | . . . . . . . . . . . . Level 3 . | . . . . . . . . . . . . Level 4 . | . . . . . . . . . . . . Level 5 . | . . . . . . . . . . . . High Security . | . . . . . . . . . . . . Max Security . | . . . . . . . . . . . . Squads Dispatched 8 | . . . 2 . . . 2 . 1 2 1 Investigation 3 | . . . 2 . . . 1 . . . . Extermination 1 | . . . . . . . . . . 1 . Reinforcement 4 | . . . . . . . 1 . 1 1 1 Assault . | . . . . . . . . . . . . Garrison . | . . . . . . . . . . . . Intercept . | . . . . . . . . . . . . Searches Triggered . | . . . . . . . . . . . . Construction Impeded . | . . . . . . . . . . . . Haulers Reinforced . | . . . . . . . . . . . . Active Scanning Responses . | . . . . . . . . . . . . Cargo Convoy Interrupts . | . . . . . . . . . . . . Stealth | -11 -10 -10 -9 -9 -9 -8 -8 -7 -7 -6 -6 --------- Run | Scr Mat Min Mat Min Exi Min Mat Fac DSF Fac Ext Distress Signals 3 | . . . 1 . . . 2 . . . . Communications Jammed . | . . . . . . . . . . . . Distress Signals . | . . . . . . . . . . . . Times Spotted 71 | . 6 5 13 3 . 3 19 . 4 6 12 Peak Tracking Total 9 | . 4 3 9 3 . 3 4 . 3 4 2 Tactical Retreats 7 | . 1 . . . . 3 1 . 1 1 . Traps | -11 -10 -10 -9 -9 -9 -8 -8 -7 -7 -6 -6 ------- Run | Scr Mat Min Mat Min Exi Min Mat Fac DSF Fac Ext Traps Triggered 1 | . . . . . . . . . . 1 . Indirectly . | . . . . . . . . . . . . Trap Hack Attempts . | . . . . . . . . . . . . Triggered . | . . . . . . . . . . . . Disarmed . | . . . . . . . . . . . . Reprogrammed . | . . . . . . . . . . . . Reused . | . . . . . . . . . . . . Traps Extracted . | . . . . . . . . . . . . Installed . | . . . . . . . . . . . . Triggered . | . . . . . . . . . . . . Machines | -11 -10 -10 -9 -9 -9 -8 -8 -7 -7 -6 -6 ---------- Run | Scr Mat Min Mat Min Exi Min Mat Fac DSF Fac Ext Machines Disabled 6 | . . 1 . . . . 4 . . . 1 Max in Single Turn 3 | . . 1 . . . . 3 . . . . Garrison Access 1 | . . . . . . . . . . 1 . Machines Sabotaged . | . . . . . . . . . . . . Garrisons Compromised . | . . . . . . . . . . . . Overloaded Fab Kills . | . . . . . . . . . . . . Hacking | -11 -10 -10 -9 -9 -9 -8 -8 -7 -7 -6 -6 --------- Run | Scr Mat Min Mat Min Exi Min Mat Fac DSF Fac Ext Machines Accessed 29 | . 6 1 3 . 1 . 8 2 . 6 2 Terminals 25 | . 6 1 3 . . . 7 2 . 4 2 Fabricators 1 | . . . . . . . . . . 1 . Repair Stations . | . . . . . . . . . . . . Recycling Units 1 | . . . . . . . 1 . . . . Scanalyzers . | . . . . . . . . . . . . Garrison Access 1 | . . . . . . . . . . 1 . Total Hacks 81 | . 19 5 10 . 1 . 21 3 . 18 4 Successful 43 | . 13 1 4 . 1 . 12 2 . 8 2 Failed 37 | . 6 4 6 . . . 8 1 . 10 2 Catastrophic 3 | . . 1 . . . . 1 . . 1 . Database Lockouts 1 | . . . . . . . 1 . . . . Manual 53 | . 15 5 5 . 1 . 14 2 . 11 . Terminals 75 | . 19 5 10 . . . 20 3 . 14 4 Fabricators 2 | . . . . . . . . . . 2 . Repair Stations . | . . . . . . . . . . . . Recycling Units 1 | . . . . . . . 1 . . . . Scanalyzers . | . . . . . . . . . . . . Garrison Access 2 | . . . . . . . . . . 2 . Terminal Hacks 27 | . 7 1 2 . 1 . 9 1 . 4 2 Robot Analysis 8 | . 3 1 2 . . . 1 . . 1 . Prototype ID Bank 3 | . 1 . . . . . 2 . . . . Open Door 3 | . . . . . . . . . . 1 2 Open DSF 1 | . . . . . . . . 1 . . . Branch Access Points 2 | . . . . . . . 1 . . 1 . Terminal Index 3 | . 1 . . . . . 1 . . 1 . Unreport Threat 2 | . . . . . . . 2 . . . . Hauler Manifests 2 | . 1 . . . . . 1 . . . . Zone Layout 2 | . 1 . . . . . 1 . . . . EX-Prototype ID Bank 1 | . . . . . 1 . . . . . . Fabricator Hacks . | . . . . . . . . . . . . Repair Station Hacks . | . . . . . . . . . . . . Recycling Unit Hacks . | . . . . . . . . . . . . Scanalyzer . | . . . . . . . . . . . . Garrison Access Hacks 1 | . . . . . . . . . . 1 . Seal Access 1 | . . . . . . . . . . 1 . Unauthorized Hacks 15 | . 6 . 2 . . . 3 1 . 3 . Terminals 14 | . 6 . 2 . . . 2 1 . 3 . Track 3 | . 2 . 1 . . . . . . . . Botnet 9 | . 3 . 1 . . . 2 1 . 2 . Operators 2 | . 1 . . . . . . . . 1 . Fabricators . | . . . . . . . . . . . . Repair Stations . | . . . . . . . . . . . . Recycling Units 1 | . . . . . . . 1 . . . . Tunnel 1 | . . . . . . . 1 . . . . Scanalyzers . | . . . . . . . . . . . . Garrison Access . | . . . . . . . . . . . . Data Cores Recovered . | . . . . . . . . . . . . Used . | . . . . . . . . . . . . Hacking Detections 22 | . 6 1 3 . . . 7 1 . 4 . Full Trace Events 5 | . 2 1 2 . . . . . . . . Feedback Events 1 | . 1 . . . . . . . . . . Corruption 1 | . 1 . . . . . . . . . . Feedback Blocked . | . . . . . . . . . . . . Robot Schematics Acquired . | . . . . . . . . . . . . Robots Built . | . . . . . . . . . . . . Authchips . | . . . . . . . . . . . . Time . | . . . . . . . . . . . . Total Robot Build Rating . | . . . . . . . . . . . . Part Schematics Acquired . | . . . . . . . . . . . . Parts Built . | . . . . . . . . . . . . Authchips . | . . . . . . . . . . . . Time . | . . . . . . . . . . . . Total Part Build Rating . | . . . . . . . . . . . . Parts Repaired . | . . . . . . . . . . . . Time . | . . . . . . . . . . . . Parts Recycled . | . . . . . . . . . . . . Recycled Matter . | . . . . . . . . . . . . Retrieved Matter . | . . . . . . . . . . . . Retrieved Components . | . . . . . . . . . . . . Parts Scanalyzed . | . . . . . . . . . . . . Part Schematics Acquired . | . . . . . . . . . . . . Parts Damaged . | . . . . . . . . . . . . Bothacking | -11 -10 -10 -9 -9 -9 -8 -8 -7 -7 -6 -6 ------------ Run | Scr Mat Min Mat Min Exi Min Mat Fac DSF Fac Ext Used RIF Installer . | . . . . . . . . . . . . Robots Hacked . | . . . . . . . . . . . . Non-combat . | . . . . . . . . . . . . Combat . | . . . . . . . . . . . . Robot Hacks Applied . | . . . . . . . . . . . . Relay Couplers Released . | . . . . . . . . . . . . Fabnet Peak Effective % . | . . . . . . . . . . . . Robots Rewired 3 | . . . . . . . . . . . 3 Allies Hacked . | . . . . . . . . . . . . Hacks Repelled . | . . . . . . . . . . . . Allies | -11 -10 -10 -9 -9 -9 -8 -8 -7 -7 -6 -6 -------- Run | Scr Mat Min Mat Min Exi Min Mat Fac DSF Fac Ext Total Allies 5 | . . . . . . . . . . . 5 Largest Group 5 | . . . . . . . . . . . 5 Highest-Rated Group 285 | . . . . . . . . . . . 285 Highest-Rated Ally 159 | . . . . . . . . . . . 159 Total Orders . | . . . . . . . . . . . . Ally Attacks 28 | . . . . . . . . . . . 28 Total Damage 516 | . . . . . . . . . . . 516 Kills 3 | . . . . . . . . . . . 3 Allies Corrupted . | . . . . . . . . . . . . Allies Melted . | . . . . . . . . . . . . Intel | -11 -10 -10 -9 -9 -9 -8 -8 -7 -7 -6 -6 ------- Run | Scr Mat Min Mat Min Exi Min Mat Fac DSF Fac Ext Robot Analysis Total 8 | . 3 1 2 . . . 1 . . 1 . Derelict Logs Recovered 1 | . . . . 1 . . . . . . . Drone Launches . | . . . . . . . . . . . . Drone Recoveries . | . . . . . . . . . . . . Exploration | -11 -10 -10 -9 -9 -9 -8 -8 -7 -7 -6 -6 ------------- Run | Scr Mat Min Mat Min Exi Min Mat Fac DSF Fac Ext Turns Passed 3704 | 85 187 48 231 192 271 368 704 108 115 528 867 Spaces Moved 2299 | 41 162 16 135 163 264 308 410 72 36 266 426 Core 13 | 13 . . . . . . . . . . . Treads 722 | . . . . . . . . . 30 266 426 Legs . | . . . . . . . . . . . . Wheels 1564 | 28 162 16 135 163 264 308 410 72 6 . . Hover . | . . . . . . . . . . . . Flight . | . . . . . . . . . . . . Fastest Speed 50 | 50 80 115 100 100 100 115 108 145 145 162 162 Average Speed 125 | 80 83 115 109 100 101 115 117 145 163 163 162 Slowest Speed 165 | 100 90 115 115 100 115 115 145 145 165 165 162 Overloaded Moves . | . . . . . . . . . . . . Propulsion Burnouts . | . . . . . . . . . . . . Robots Hopped 1 | . . . . . . . . . . . 1 Cave-ins Triggered . | . . . . . . . . . . . . Exploration Rate (%) 32 | 3 39 9 15 44 65 68 53 4 45 9 40 Regions Visited 11 Branch Regions 5 Pre-discovered Areas 1 | . . . . . . . 1 . . . . Known Exits Taken 2 | . . . . . . . . 1 . 1 . Unknown Exits Taken 8 | 1 1 1 1 1 1 1 1 . . . . Scrap Searched 1 | . . . . . . 1 . . . . . Spaces Dug 38 | . 3 20 1 . . . 6 . . 7 1 Terrain Destroyed 148 | . 57 25 1 8 . . 49 . . 7 1 Melee 4 | . . . . . . . . . . 3 1 Projectile 14 | . 3 . 1 . . . 6 . . 4 . AOE 130 | . 54 25 . 8 . . 43 . . . . Terrain Rammed . | . . . . . . . . . . . . Walls Destroyed . | . . . . . . . . . . . . Machines Disabled . | . . . . . . . . . . . . Actions | -11 -10 -10 -9 -9 -9 -8 -8 -7 -7 -6 -6 --------- Run | Scr Mat Min Mat Min Exi Min Mat Fac DSF Fac Ext Total 2766 | 70 187 28 181 177 268 313 533 76 68 332 533 Wait 23 | . . . 1 . . . 4 . . 4 14 Move 2286 | 40 161 15 134 162 263 307 409 71 35 265 424 Hop 1 | . . . . . . . . . . . 1 Pick Up 67 | 9 5 . 7 3 3 2 15 2 5 8 8 Fast Attach 22 | 6 . . 3 . . . 4 . 2 4 3 Attach 38 | 3 1 1 5 . . . 10 2 2 8 6 Detach 10 | 2 . . 2 . . . 3 . . 2 1 Swap 83 | . 6 2 7 4 1 . 37 . 3 12 11 Drop 46 | . 3 . 5 1 1 . 11 1 6 11 7 Fire 158 | 10 11 10 17 7 . 4 40 . 15 12 32 Melee 5 | . . . . . . . . . . 4 1 Ram . | . . . . . . . . . . . . Kick . | . . . . . . . . . . . . Crush 2 | . . . . . . . . . . 2 . Escape Stasis . | . . . . . . . . . . . . Rewire 25 | . . . . . . . . . . . 25 Trap . | . . . . . . . . . . . . Miscellaneous . | . . . . . . . . . . . . Route ------- -11/Scrapyard -10/Materials (discovered 2 exits: *Min x2) -10/Mines -9/Materials -9/Mines (discovered 3 exits: *Mat x2 / *Exi) -9/Exiles -8/Mines -8/Materials (discovered 3 exits: *Fac / *Sto x2) -7/Factory -7/DSF -6/Factory (discovered 4 exits: Low x2 / *Ext x2) -6/Extension History --------- Turn | Location | Event 14 | -11/Scrapyard | Discovered new exit (range 16) 86 | -11/Scrapyard | Entered Materials 128 | -10/Materials | Discovered new exit (range 6) 249 | -10/Materials | Discovered new exit (range 14) 273 | -10/Materials | Entered Mines 274 | -10/Mines | Assembled infested the area 313 | -10/Mines | Discovered new exit (range 9) 315 | -10/Mines | Build established: Mutant 321 | -10/Mines | Entered Materials 321 | -9/Materials | Evolved 2 slots: Propulsion x1, Utility x1 458 | -9/Materials | Discovered new exit (range 15) 552 | -9/Materials | Entered Mines 615 | -9/Mines | Discovered new exit (range 5) 654 | -9/Mines | Learned Materials non-interactive machine intel 695 | -9/Mines | Discovered new exit (range 9) 740 | -9/Mines | Deemed a non-threat by the Exiles lab entrance 740 | -9/Mines | Discovered new exit (range 5) 744 | -9/Mines | Entered Exiles 769 | -9/Exiles | Met 8R-AWN 786 | -9/Exiles | Met EX-HEX 856 | -9/Exiles | Met EX-BIN 867 | -9/Exiles | Aligned with FarCom system 868 | -9/Exiles | Given EX-Vault access code 891 | -9/Exiles | Opened EX-Vault 897 | -9/Exiles | Found 0b10 Alert Chip 919 | -9/Exiles | Warned to stay clear of 0b10 Research branches 933 | -9/Exiles | Exiles lab attacked by MAIN.C 1006 | -9/Exiles | Discovered new exit (range 10) 1015 | -9/Exiles | Left Exiles lab with 0b10 Alert Chip 1015 | -9/Exiles | Entered Mines 1371 | -8/Mines | Discovered new exit (range 11) 1383 | -8/Mines | Entered Materials 1383 | -8/Materials | Evolved 2 slots: Utility x1, Weapon x1 1384 | -8/Materials | Loaded intel: 42 non-interactive machine locations 1599 | -8/Materials | Central database locked down 1776 | -8/Materials | Discovered new exit (range 6) 1903 | -8/Materials | Identified exit to Storage 2038 | -8/Materials | Discovered new exit (range 5) 2087 | -8/Materials | Entered Factory 2087 | -7/Factory | Evolved 2 slots: Propulsion x1, Utility x1 2195 | -7/Factory | Identified exit to DSF 2195 | -7/Factory | Entered DSF 2251 | -7/DSF | Additional patrols routed to DSF 2277 | -7/DSF | Discovered new exit (range 15) 2310 | -7/DSF | Entered Factory 2310 | -6/Factory | Evolved 2 slots: Utility x2 2409 | -6/Factory | Identified exit to Lower Caves 2409 | -6/Factory | Identified exit to Extension 2838 | -6/Factory | Entered Extension 3196 | -6/Extension | Rescued a captive Derelict 3297 | -6/Extension | Rescued A7 3705 | -6/Extension | Self-destructed Last Messages --------------- 03490_ Identified Imp. Matter Compressor. 03491_ Extracted 20 matter. 03493_ Dropped Hcp. Matter Pod. 03493_ Acquired Imp. Matter Compressor. 03494_ Dropped Hcp. Matter Pod. 03494_ Extracted 20 matter. 03497_ Extracted 10 matter. 03499_ Acquired Imp. Light Armor Plating. 03503_ System corrupted: Energy discharge (-89). 03527_ System corrupted: Heat flow error (+283). 03546_ Acquired 2 matter. 03558_ %PDDMOI KMSQ6% SVP4X26:/UY 03574_ Penetrated by HV Slug. 03574_ HV Slug penetrates Wall. 03596_ System corrupted: Energy discharge (-93). 03616_ ZCY1MWYFMKZ>2,8GJDCQABQO 03622_ Discarded Imp. Hacking Suite. 03632_ System corrupted: Matter fused (-9). 03683_ System corrupted: Energy discharge (-105). 03700_ Acquired 3 matter. Map ----- +----------------------------------------------------+ | ## =##### #?##?### [[ ### ### | | ## ]*! #######?###?### = ########### | | ###################?#?##########################?? | | ###?###########?#???##???##############?########## | | #??#####?################?#######???##?########### | | ##?##?##?###?#??##?################?###?####?#???? | | #####?#???#?###########?##?#???#?###?############? | | #########?##########?#############?########?###### | | #?#######?########?######?###?########??####?###?? | | ##?####?############?#######???#####?#?###??##???# | | #####?###?###################?###?##?##?##?#####?# | | ##?#######?#?###?#?###########?###??#??#?#####?### | | ######?#############?########??###?###?####??#???? | | ######?########?############?###?####?######????#? | | #######?########?#########?###?#?#??######?????#?? | | ###############?###?#?####?##?######??####?##???## | | ####??###################?###?############????#??# | | " ###########?#############?#?###??#??#?#?####?#? | | ############################################### | | | | | | u | | | | u | | ###############+#####/######################### | | #?########??### #### l@ #########?#?##?##??# | | "#############?### p!### ##??#######?##??#??? | | "###################### %### ##############?##??? | | "##?#####! "################# ##! ########?#?#?#?? | | ##?#?##""! " ""#?#?#??#?#?##? | | #?#####""""""""""""""""""" "" """"""#?####???#??#? | | ?##?####################################?##???###? | | | | | | | | | | | | | | | | | | | | | | | | | | | | | | | | | | | | | +----------------------------------------------------+ Best States ------------- Heat Dissipation 42 Energy Generation 18 Energy Capacity 300 Matter Stores 300 Matter Capacity 300 Sight Range 16 Terrain Scan Range 20 Terrain Scan Density 85 Jamming Range 12 Armor Coverage 300 Weapon Cycling 15 Evasion (%) 50 Targeting Accuracy 8 Armor Integrity Analysis 30 Recoil Reduction 4 Kinecelleration 30 Offensive Hacking 12 Defensive Hacking 10 Item Schematics ----------------- None Robot Schematics ------------------ None Fabricated ------------ Nothing Alien Tech Used ----------------- None Achievements -------------- None Challenges ------------ None Game ------ Seed SuspensionScatterMegatreads Manual? 0 Play Time 00:52:29 Cumulative 698.0 hours Start 2022.06.22 @ 23:40:39 End 2022.06.23 @ 00:30:58 Sessions 1 Manual Loads 0 Difficulty Rogue Special Mode None Game No. 365 Rogue 238 Adventurer 125 Explorer 2 Win Type - Total 80 Types 69/4/4/1/1/0/0/0/1 Lore% 81 Gallery% 88 Achievement% 75 Wizard Run 0 Options --------- ASCII 0 Keyboard 1 Movement Numpad Keybinds 0 Fullscreen 1 Font 36/TerminusFine Map View 76x50 Tactical HUD 1 Map Filters NONE Filters NONE Steam 1 RUN: cf1d6dd5-7245-4bbb-bc03-a3a8d5e17c05